Cogmind - Beta 16.1 @@@ ROGUE MODE // 2026.02.26 @ 10:27:24 Player: Fleshy Vegetable Bird Result: Destroyed by Y-45 Defender with Heavy Assault Rifle Performance ------------- Evolutions (0) 0 Regions Visited (2) 400 Robots Destroyed (50) 250 Value Destroyed (1189) 1189 Prototype IDs (2) 40 Alien Tech Used (0) 0 Bonus (0) 0 TOTAL SCORE: 1879 Bonus ------- None Cogmind --------- Core Integrity 0/250 Matter 216/300 Energy 198/200 System Corruption 2% Temperature Cool (9) Movement Treading (160) Location -10/Subcaves Parts ------- > --- POWER (1) -------- Subdweller Power Source > --- PROPULSION (2) --- Light Treads Spiked Treads > --- UTILITY (2) ------ Large Storage Unit Structural Scanner > --- WEAPON (2) ------- Light Cannon Slug Cannon > --- INVENTORY (15) --- Subdweller Monowheel Subdweller Monowheel Subdweller Optics Scrap Shield Scrap Shield Hacking Suite Subdweller Laser Subdweller Laser Subdweller Beam Cannon Battle Rifle Subdweller Machine Gun Mining Laser Flamer Peak State ------------ > --- POWER ------------ Subdweller Power Source > --- PROPULSION ------- Subdweller Monowheel Subdweller Monowheel > --- UTILITY ---------- Large Storage Unit Seismic Detector > --- WEAPON ----------- Subdweller Beam Cannon Barrage Gun > --- INVENTORY -------- Subdweller Power Source Subdweller Monowheel Subdweller Monowheel Structural Scanner Subdweller Optics Scrap Shield Hacking Suite Riot Gun Assault Rifle Subdweller Machine Gun Light Cannon Mining Laser [Rating: 15] Favorites ----------- Power Light Ion Engine Engine Light Ion Engine Propulsion Subdweller Monowheel Treads Light Treads Wheel Subdweller Monowheel Utility Large Storage Unit Device Structural Scanner Storage Large Storage Unit Weapon Subdweller Beam Cannon Energy Gun Riot Gun Energy Cannon Subdweller Beam Cannon Ballistic Gun Assault Rifle Ballistic Cannon Light Cannon Launcher Grenade Launcher Special Weapon Mining Laser Build | -11 -10 -10 ------- Run | Yrd Mat Sub Slots Evolved . | . . . Power . | . . . Propulsion . | . . . Utility . | . . . Weapon . | . . . Parts Attached 32 | 7 6 19 Power 5 | 1 1 3 Engine 5 | 1 1 3 Core . | . . . Reactor . | . . . Propulsion 12 | 2 1 9 Treads 3 | . . 3 Leg . | . . . Wheel 9 | 2 1 6 Hover . | . . . Flight . | . . . Utility 5 | 2 1 2 Device 2 | 1 . 1 Storage 3 | 1 1 1 Processor . | . . . Hackware . | . . . Protection . | . . . Artifact . | . . . Weapon 10 | 2 3 5 Energy Gun 2 | 1 . 1 Energy Cannon 1 | . . 1 Ballistic Gun 3 | 1 1 1 Ballistic Cannon 2 | . . 2 Launcher 1 | . 1 . Special Weapon 1 | . 1 . Impact Weapon . | . . . Slashing Weapon . | . . . Piercing Weapon . | . . . Special Melee Weapon . | . . . Unidentified Prototypes . | . . . Parts Lost 7 | . . 7 Power 1 | . . 1 Propulsion 3 | . . 3 Utility . | . . . Weapon 3 | . . 3 Highest Loss Streak 3 | . . 3 To Critical Strikes 1 | . . 1 Average Backups 11 | 4 10 11 Power 1 | 1 2 1 Propulsion 2 | 2 4 2 Utility 3 | . 1 3 Weapon 4 | 1 2 4 Tool/Special . | . . . Unused Backups 18 | . 1 17 Power 2 | . 1 1 Propulsion 4 | . . 4 Utility 5 | . . 5 Weapon 7 | . . 7 Tool/Special . | . . . Average Slot Usage (%) 94 | . 100 92 Engine 8 | . 14 7 Treads 8 | . . 10 Wheel 18 | . 28 17 Device 14 | . 14 14 Storage 14 | . 14 14 Energy Gun 8 | . . 9 Energy Cannon 8 | . . 9 Ballistic Gun 6 | . 14 5 Launcher 3 | . 12 1 Special Weapon 1 | . 1 1 Peak Build Rating 15 | 7 8 15 Average Rating 10 | 5 7 11 On Entrance 5 | . 7 8 Avg Prop Armor Cover (%) 5 | 6 . 5 Naked Turns . | . . . Heaviest Build 37 | 13 31 37 Greatest Support 40 | 20 20 40 Greatest Overweight (x) 3 | 1 1 3 Average Overweight (x) . | . . . Largest Inventory Capacity 15 | 8 15 15 Average Capacity 14 | 7 14 15 Most Carried 15 | 8 15 15 Average Carried 11 | 5 10 12 Final Capacity 15 | 8 15 15 Final Carried 15 | 8 15 15 Class Distribution -------------------- 81% | Mutant 18% | Scavenger-Mutant Dominant Class ---------------- Mutant | -10/Materials Mutant | -10/Subcaves Resources | -11 -10 -10 ----------- Run | Yrd Mat Sub Matter Collected 1422 | 300 327 795 Remotely . | . . . Salvage Created 1052 | 189 281 582 Parts 74 | 11 30 33 Haulers Intercepted 1 | . 1 . Recyclers Shooed . | . . . Parts Field Recycled . | . . . Retrieved Matter . | . . . Parts Self-Destructed 9 | . . 9 Prevented 1 | . . 1 Parts Restored . | . . . Kills | -11 -10 -10 ------- Run | Yrd Mat Sub Combat Hostiles Destroyed 34 | . 10 24 Guns 10 | . 2 8 Cannons 5 | . . 5 AOE 19 | . 8 11 Classes Destroyed 11 | 2 7 2 Worker 1 | . 1 . Builder 1 | . 1 . Tunneler 5 | 5 . . Hauler 1 | . 1 . Recycler 1 | 1 . . Operator 3 | . 3 . Turret 2 | . . 2 Watcher 2 | . 2 . Swarmer 13 | . 6 7 Grunt 6 | . 4 2 Subdweller 15 | . . 15 Best Kill Streak 7 | 4 7 5 Combat Bots Only 5 | . 5 4 Max Kills in Single Turn 3 | 1 3 2 Gunslinging . | . . . Exploded 3 | . 3 2 Melee . | . . . Uniques/NPCs Destroyed . | . . . Combat | -11 -10 -10 -------- Run | Yrd Mat Sub Hostile Shots Fired 120 | . 10 110 Missed 41 | . 3 38 Hits 79 | . 7 72 Projectile 79 | . 7 72 Critical Strikes 2 | . . 2 Damage Taken 1256 | . 79 1177 Core 257 | . 11 246 Absorbed by Shields . | . . . Core Remaining (%) 100 | 100 . . Volleys Fired 130 | 10 45 75 Largest 2 | 2 2 2 Hottest 130 | 70 100 130 Shots Fired 210 | 20 58 132 Gun 130 | 20 43 67 Cannon 30 | . . 30 Launcher 42 | . 12 30 Special 8 | . 3 5 Kinetic 130 | 10 43 77 Thermal 32 | 10 3 19 Explosive 42 | . 12 30 Electromagnetic 6 | . . 6 Robot Hit Streak 20 | 7 8 20 Robot Miss Streak 4 | 1 4 2 Penetration Max . | . . . Secondary Targets 2 | . . 2 Max Gunslinging Chain 1 | . . 1 Shots Hit Robots 135 | 15 30 90 Core Hits 86 | 7 30 49 Critical Kills . | . . . Critical Parts Destroyed 2 | . . 2 Critical Strikes 5 | 2 . 3 Burn 2 | 2 . . Destroy 3 | . . 3 Melee Attacks . | . . . Impact . | . . . Slashing . | . . . Piercing . | . . . Sneak Attacks . | . . . Combat Hostiles . | . . . Follow-up Attacks . | . . . Damage Inflicted 3692 | 184 965 2543 Guns 1297 | 184 297 816 Cannons 511 | . . 511 Explosions 1884 | . 668 1216 Melee . | . . . Ramming . | . . . Kinetic 1400 | 82 297 1021 Thermal 328 | 102 . 226 Explosive 1884 | . 668 1216 Electromagnetic 80 | . . 80 Impact . | . . . Slashing . | . . . Piercing . | . . . Highest Corruption 2 | . 2 2 Average Corruption 2 | . 2 2 Corruption Purged . | . . . Corruption Blocked . | . . . Effects 47 | . . 47 Message Errors 14 | . . 14 Matter Fused 7 | . . 7 Heat Flow Errors 4 | . . 4 Energy Discharges 7 | . . 7 Data Loss (minor) 6 | . . 6 Data Loss (major) 2 | . . 2 Misfires 2 | . . 2 Alerts 4 | . . 4 Weapon Failures 1 | . . 1 Overload Shots . | . . . Overflow Damage 52 | . 21 31 Projectiles 31 | . . 31 Explosions 21 | . 21 . Melee . | . . . Knockbacks . | . . . Impact . | . . . Kinetic . | . . . Secondary . | . . . Self-Inflicted Damage 42 | . 11 31 Shots 3 | . 2 1 Rammed . | . . . Targets Rammed . | . . . Kicked . | . . . Crushed . | . . . Highest Temperature 208 | . 20 208 Average Temperature 36 | . 10 45 Received Heat Transfer 273 | . 27 246 Siege Activations . | . . . Martial Activations . | . . . Shielding Activations . | . . . Robots Disrupted . | . . . Combat Hostiles . | . . . Robots Corrupted . | . . . Combat Hostiles . | . . . Parts Fried 1 | . . 1 Impact Corruptions . | . . . Robots Melted . | . . . Combat Hostiles . | . . . Parts Melted . | . . . Heat Transferred 740 | 444 . 296 Parts Sabotaged . | . . . Parts Stolen . | . . . Parts Stripped . | . . . Power Chain Reactions . | . . . Alert | -11 -10 -10 ------- Run | Yrd Mat Sub Maximum Alert Level . | . . . Low Security (%) 100 | 100 100 . Level 1 . | . . . Level 2 . | . . . Level 3 . | . . . Level 4 . | . . . Level 5 . | . . . High Security . | . . . Max Security . | . . . Peak Influence 161 | 10 161 . Initial . | . . . Average 30 | 2 36 . Influence Increases 908 | 30 398 480 Destroy 0b10 Robot/C 420 | . 200 220 Destroy 0b10 Robot/NC 70 | 30 40 . Destroy Leader 66 | . 46 20 Successful Hack 10 | . 10 . Disable Machine 60 | . 60 . Destroy Structure 42 | . 42 . Lose Combat Pursuer 240 | . . 240 Influence Decreases 889 | 30 374 485 Entered New Map 12 | . . 12 Time Decay 700 | 30 233 437 Lost Part 36 | . . 36 Purge Threat 141 | . 141 . Squads Dispatched 1 | . 1 . Investigation . | . . . Extermination . | . . . Reinforcement 1 | . 1 . Assault . | . . . Garrison . | . . . Intercept . | . . . Searches Triggered . | . . . Construction Impeded . | . . . Haulers Reinforced . | . . . Active Scanning Responses . | . . . Cargo Convoy Interrupts . | . . . Stealth | -11 -10 -10 --------- Run | Yrd Mat Sub Distress Signals . | . . . Communications Jammed . | . . . Distress Signals . | . . . Times Spotted 43 | . 17 26 Peak Tracking Total 5 | . 5 4 Tactical Retreats 3 | . . 3 Traps | -11 -10 -10 ------- Run | Yrd Mat Sub Traps Triggered 2 | . 1 1 Indirectly . | . . . Trap Hack Attempts . | . . . Triggered . | . . . Disarmed . | . . . Reprogrammed . | . . . Reused . | . . . Traps Extracted . | . . . Installed . | . . . Triggered . | . . . Machines | -11 -10 -10 ---------- Run | Yrd Mat Sub Machines Disabled 7 | . 4 3 Max in Single Turn 2 | . 2 2 Machines Repaired . | . . . Machines Dismantled . | . . . Machines Sabotaged . | . . . Overloaded Fab Kills . | . . . Hacking | -11 -10 -10 --------- Run | Yrd Mat Sub Machines Accessed 9 | . 6 3 Terminals 6 | . 6 . Fabricators . | . . . Repair Stations . | . . . Recycling Units . | . . . Scanalyzers . | . . . Garrison Access . | . . . Total Hacks 27 | . 21 6 Successful 15 | . 9 6 Failed 12 | . 12 . Catastrophic . | . . . Database Lockouts . | . . . Manual 20 | . 20 . Terminals 21 | . 21 . Fabricators . | . . . Repair Stations . | . . . Recycling Units . | . . . Scanalyzers . | . . . Garrison Access . | . . . Terminal Hacks 10 | . 4 6 Record 4 | . . 4 Robot Analysis 2 | . 2 . Prototype ID Bank 1 | . 1 . Open Door 1 | . . 1 Unreport Threat 1 | . 1 . Release Object 1 | . . 1 Fabricator Hacks . | . . . Repair Station Hacks . | . . . Recycling Unit Hacks . | . . . Scanalyzer . | . . . Garrison Access Hacks . | . . . Unauthorized Hacks 5 | . 5 . Terminals 5 | . 5 . Botnet 4 | . 4 . Operators 1 | . 1 . Fabricators . | . . . Repair Stations . | . . . Recycling Units . | . . . Scanalyzers . | . . . Garrison Access . | . . . Data Cores Recovered 3 | . 3 . Used 2 | . 2 . Hacking Detections 6 | . 6 . Full Trace Events . | . . . Feedback Events . | . . . Feedback Blocked . | . . . Robot Schematics Acquired . | . . . Robots Built . | . . . Authchips . | . . . Time . | . . . Total Robot Build Rating . | . . . Part Schematics Acquired . | . . . Parts Built . | . . . Authchips . | . . . Time . | . . . Total Part Build Rating . | . . . Part Studies Acquired . | . . . Parts Repaired . | . . . Time . | . . . Parts Recycled . | . . . Recycled Matter . | . . . Retrieved Matter . | . . . Retrieved Components . | . . . Parts Scanalyzed . | . . . Part Schematics Acquired . | . . . Parts Damaged . | . . . Bothacking | -11 -10 -10 ------------ Run | Yrd Mat Sub Used RIF Installer . | . . . Robots Hacked . | . . . Non-combat . | . . . Combat . | . . . Robot Hacks Applied . | . . . Relay Couplers Released . | . . . Fabnet Peak Effective % . | . . . Robots Rewired . | . . . Allies Hacked . | . . . Hacks Repelled . | . . . Allies | -11 -10 -10 -------- Run | Yrd Mat Sub Total Allies . | . . . Largest Group . | . . . Highest-Rated Group . | . . . Highest-Rated Ally . | . . . Total Orders . | . . . Ally Attacks . | . . . Total Damage . | . . . Kills . | . . . Allies Corrupted . | . . . Allies Melted . | . . . Intel | -11 -10 -10 ------- Run | Yrd Mat Sub Active Infowar (turns) 3980 | . 647 3333 Structural 2089 | . . 2089 Seismic 1891 | . 647 1244 Robot Analysis Total 2 | . 2 . Derelict Logs Recovered 3 | . . 3 Drone Launches . | . . . Drone Recoveries . | . . . Exploration | -11 -10 -10 ------------- Run | Yrd Mat Sub Turns Passed 4114 | 132 647 3335 Spaces Moved 2436 | 95 541 1800 Core 2 | 2 . . Treads 746 | . . 746 Legs . | . . . Wheels 1688 | 93 541 1054 Hover . | . . . Flight . | . . . Fastest Speed 50 | 50 80 95 Average Speed 141 | 87 92 158 Slowest Speed 240 | 95 95 240 Overloaded Moves . | . . . Propulsion Burnouts . | . . . Robots Hopped . | . . . Potential Cave-ins . | . . . Cave-ins Triggered . | . . . Exploration Rate (%) 57 | 3 83 86 Regions Visited 2 Branch Regions 1 Pre-discovered Areas 2 | . . 2 Known Exits Taken . | . . . Unknown Exits Taken 2 | 1 1 . Scrap Searched 8 | . . 8 Spaces Dug 9 | . 3 6 Terrain Destroyed 173 | . 54 119 Melee . | . . . Projectile 4 | . 3 1 AOE 169 | . 51 118 Terrain Rammed . | . . . Walls Destroyed . | . . . Machines Disabled . | . . . Actions | -11 -10 -10 --------- Run | Yrd Mat Sub Total 2896 | 120 619 2157 Wait 223 | . 17 206 Move 2434 | 94 540 1800 Hop . | . . . Pick Up 40 | 9 6 25 Fast Attach 9 | 6 1 2 Attach 11 | 1 . 10 Detach . | . . . Swap 23 | . 7 16 Drop 26 | . 3 23 Fire 130 | 10 45 75 Melee . | . . . Ram . | . . . Kick . | . . . Crush . | . . . Escape Stasis . | . . . Rewire . | . . . Trap . | . . . Miscellaneous . | . . . Route ------- -11/Scrapyard -10/Materials (discovered 5 exits: [*Mat x3] / [*Min] / *Sub) -10/Subcaves (discovered 3 exits: [*Mat x2] / [*Rec]) History --------- Turn | Location | Event 17 | -11/Scrapyard | Discovered new exit (range 14) 133 | -11/Scrapyard | Entered Materials 142 | -10/Materials | Discovered new exit (range 14) 253 | -10/Materials | Discovered new exit (range 10) 301 | -10/Materials | Build established: Mutant 516 | -10/Materials | Discovered new exit (range 16) 650 | -10/Materials | Discovered new exit (range 7) 764 | -10/Materials | Discovered new exit (range 9) 780 | -10/Materials | Entered Subcaves 781 | -10/Subcaves | Approached by a straggling Scientist 791 | -10/Subcaves | Discovered new exit (range 14) 848 | -10/Subcaves | Shifting Twisted Machinery released Riot Gun 854 | -10/Subcaves | Shifting Twisted Machinery released Barrage Gun 891 | -10/Subcaves | Discovered new exit (range 5) 943 | -10/Subcaves | Learned location of 1 exit from Materials 1100 | -10/Subcaves | Learned location of Zion (-6) 1100 | -10/Subcaves | Met a Zionite searching for "candidates" 1102 | -10/Subcaves | Shifting Twisted Machinery released Sub. Beam Cannon 1108 | -10/Subcaves | Learned location of 1 exit from Materials 1128 | -10/Subcaves | Shifting Twisted Machinery released Battle Cannon 1337 | -10/Subcaves | Discovered new exit (range 14) 1376 | -10/Subcaves | Core integrity fell below 50% 1727 | -10/Subcaves | Lost 3 parts (1p1n1w) 1967 | -10/Subcaves | Build established: Scavenger-Mutant 2143 | -10/Subcaves | Core integrity fell below 20% 2616 | -10/Subcaves | Build established: Mutant 2676 | -10/Subcaves | Learned Materials terminal intel 3285 | -10/Subcaves | Visited Clippyterm 3292 | -10/Subcaves | Learned location of Section 7 (-2) 3861 | -10/Subcaves | Shifting Twisted Machinery released Spk. Treads 3927 | -10/Subcaves | A swath of the cavern ceiling suddenly collapsed 4115 | -10/Subcaves | Destroyed by Y-45 Defender with Heavy Assault Rifle Last Messages --------------- 04038_ Acquired Slug Cannon. 04039_ Dropped Battle Rifle. 04046_ Subatomizers dissect the Battle Rifle. 04049_ Acquired Sub. Laser. 04058_ Subatomizers dissect the Battle Rifle. 04068_ Subatomizers dissect the Disposable Heat Sink. 04076_ L2 TDI=ZSS20NX8JA,P|:I37L 04093_ Destroyed Flight Unit. 04093_ S-10 Pest destroyed. 04096_ Y-45 Defender suffers critical hit (Destroy). 04096_ Destroyed Lgt. Treads. 04099_ Destroyed Ion Engine. 04100_ Flight Unit fries itself beyond repair. 04102_ G-34 Mercenary suffers critical hit (Destroy). 04102_ Destroyed Sml. Laser. 04105_ System corrupted: Slug Cannon jammed. 04106_ G-34 Mercenary destroyed. Map ----- +----------------------------------------------------+ | ??????????????????????????????????????????? | | ??????????????????????????????????????????? | | ??????????????????????????????????????????? | | ??????????????????????????????????????????? | | ??????????????????????????????????????????? | | ??????????????????????????????????????????? | | ??????????????????????????????????????????? | | ??????????????????????????????????????????? | | ??????????????????????????????????????????? | | ??????????????????????????????????????????? | | ??????????????????????????????????????????? | | ??????????????????????????????????????????? | | ??????????????????????????????????????????? | | ??????????????????????????????????????????? | | ??????????????????????????????????????????? | | ??????????????????????????????????????????? | | ??????????????????????????????????????????? | | ????????????????#####?????????????????????? | | ????????????????######????????????????????? | | ????????????????## ###?????? ##???????????? | | ????????????????## ##?????? ##???????????? | | ????????????????## ##### ##???????????? | | ???????????????### ##### ##???????????? | | ???????????????### # % ##???????????? | | ???????????????## Y% ###??????????? | | ???????????????## @ % ; ;##??????????? | | ???????????????## %##% ##"####??????????? | | ??############### ## ####??????????????? | | ?################ ####""#"??????????????? | | ?###""" """#### ###""#"???????????????? | | ?##"" """""### #####"?????????????? | | ?##" """ "" ## ######?????????????? | | ?##"""" " ## # "#""## ??????????? | | ?## """ ## # # #""#####???????????? | | ?##""""&#### ## ##""#####???????????? | | ?## =""## !#" ##""""""##???????????? | | ?## !"## # """""#"##???????????? | | ?##% ["## # ###""####???????????? | | ?##*% "## #"< ##"##"###???????????? | | ?## %*######< " ##"#????????????? | | ?##[ % "####### # # #??????????? | | ?##% !%"###??### ## ## # ##????????### | | ?### ["[##???### ## ###### ## ??######## | | ?#########????## ###### ## ####### | | ??########????### #### ### | | ??????????????###### ##### ?#### | | ???????????????##### ### ####### | | ??????????????##### ####### | | ??????????????### ## ### ## | | ??????????????## ## ## # | +----------------------------------------------------+ Best States ------------- Heat Dissipation 25 Energy Generation 15 Energy Capacity 250 Matter Stores 300 Matter Capacity 300 Sight Range 16 Terrain Scan Density 10 Evasion (%) 44 Recoil Reduction 2 Item Schematics ----------------- None Robot Schematics ------------------ None Fabricated ------------ Nothing Repaired ---------- Nothing Studied --------- None Alien Tech Used ----------------- None Achievements -------------- None Challenges ------------ None Game ------ Seed StorageBoltFlamer Manual? 0 Play Time 00:27:21 Cumulative 408.3 hours Start 2026.02.26 @ 10:02:45 End 2026.02.26 @ 10:27:24 Sessions 1 Manual Loads 0 Difficulty Rogue Special Mode None Game No. 455 Rogue 455 Adventurer 0 Explorer 0 Win Type - Total 6 Types 3/1/1/1/0/0/0/0/0/0 Lore% 76 Gallery% 68 Achievement% 44 Wizard Run 0 Options --------- Layout 1 ASCII 0 Keyboard 0 Movement Numpad Keybinds 0 Fullscreen 1 Font 32/SmallcapsGlow Map View 50x35 Zoom Use 0% Tactical HUD 1 Map Filters NONE Filters NONE Steam 1 RUN: c339d617-3583-432c-a51b-6da3367714e6